[Event "27th CRO-chT 1A-Men 2018"]
[Site "Biograd"]
[Date "2018.09.10"]
[Round "3.9"]
[White "Muse, Drazen"]
[Black "Zivkovic, Vjekoslav"]
[Result "1/2-1/2"]
[ECO "D79"]
[WhiteElo "2352"]
[BlackElo "2358"]
[Annotator "RC"]
[PlyCount "46"]
[EventDate "2018.09.08"]
[EventType "team-tourn"]
[EventCountry "CRO"]
[SourceTitle "playchess.com"]
[Source "ChessBase"]
[SourceQuality "1"]
[TimeControl "40/5400+30:1800+30"]

1. d4 {[%emt 0:00:30]} Nf6 {[%emt 0:00:30]} 2. c4 {[%emt 0:00:30]} g6 {[%emt 0:00:30]} 3. g3 {[%emt 0:00:30]} c6 {[%emt 0:00:30]} 4. Nf3 {[%emt 0:02:30]} Bg7 {[%emt 0:02:30]} 5. Bg2 {[%emt 0:00:30]} d5 {[%emt 0:03:30]} 6. cxd5 {[%emt 0:02:30]} cxd5 {[%emt 0:00:00]} 7. Nc3 {[%emt 0:00:00]} O-O {[%emt 0:04:00]} 8. Ne5 {[%emt 0:01:00]} e6 {[%emt 0:06:30]} 9. O-O {[%emt 0:05:30]} Nfd7 {[%emt 0:03:30]} 10. Nf3 {[%emt 0:00:30]} Nc6 {[%emt 0:03:30]} 11. Bf4 {[%emt 0:03:30]} Nf6 {[%emt 0:07:30]} 12. Ne5 {[%emt 0:03:30]} Bd7 {[%emt 0:04:30]} 13. Qd2 {[%emt 0:01:30]} Nxe5 {[%emt 0:02:30]} 14. Bxe5 {[%emt 0:00:30]} Bc6 {[%emt 0:00:30]} 15. Rac1 {[%emt 0:00:30]} Rc8 {[%emt 0:00:30]} 16. Rc2 {[%emt 0:01:30]} Ne4 {[%emt 0:02:30]} 17. Nxe4 {[%emt 0:01:30]} dxe4 {[%emt 0:00:30]} 18. Bxg7 {[%emt 0:00:00]} Kxg7 {[%emt 0:00:00]} 19. Rfc1 {[%emt 0:01:00]} Qd7 {[%emt 0:02:00]} 20. Qe3 {[%emt 0:01:30]} Rfd8 {[%emt 0:00:30]} 21. Bxe4 {[%emt 0:00:30]} Bxe4 {[%emt 0:00:30]} 22. Qxe4 {[%emt 0:00:30]} Rxc2 {[%emt 0:00:30]} 23. Rxc2 {[%emt 0:00:30]} Qxd4 {[%emt 0:00:00]} 1/2-1/2

[Event "27th CRO-chT 1A-Men 2018"]
[Site "Biograd"]
[Date "2018.09.10"]
[Round "3.10"]
[White "Mrkonjic, Nenad"]
[Black "Zovko, Mario"]
[Result "1-0"]
[ECO "D38"]
[WhiteElo "2352"]
[BlackElo "2328"]
[Annotator "ChessBase"]
[PlyCount "143"]
[EventDate "2018.09.08"]
[EventType "team-tourn"]
[EventCountry "CRO"]
[SourceTitle "playchess.com"]
[Source "ChessBase"]
[SourceQuality "1"]
[TimeControl "40/5400+30:1800+30"]

1. d4 {[%emt 0:00:30]} d5 {[%emt 0:00:30]} 2. c4 {[%emt 0:01:30]} e6 {[%emt 0:00:30]} 3. Nc3 {[%emt 0:01:30]} Nf6 {[%emt 0:00:00]} 4. Nf3 {[%emt 0:00:30]} Bb4 {[%emt 0:00:00]} 5. a3 {[%emt 0:00:30]} Bxc3+ {[%emt 0:00:30]} 6. bxc3 {[%emt 0:00:00]} O-O {[%emt 0:00:30]} 7. Bg5 {[%emt 0:06:00]} h6 {[%emt 0:01:30]} 8. Bxf6 {[%emt 0:01:30]} Qxf6 {[%emt 0:01:30]} 9. e3 {[%emt 0:00:30]} Nd7 {[%emt 0:02:30]} 10. Be2 {[%emt 0:04:30]} dxc4 {[%emt 0:09:30]} 11. Bxc4 {[%emt 0:01:30]} c5 {[%emt 0:00:30]} 12. O-O {[%emt 0:00:00]} e5 {[%emt 0:06:30]} 13. Qb3 {[%emt 0:01:00]} cxd4 {[%emt 0:02:30]} 14. cxd4 {[%emt 0:00:30]} exd4 {[%emt 0:00:00]} 15. Nxd4 {[%emt 0:01:30]} Nc5 {[%emt 0:04:00]} 16. Qb4 {[%emt 0:13:30]} b6 {[%emt 0:05:30]} 17. Bd5 {[%emt 0:01:30]} Bb7 {[%emt 0:00:30]} 18. Bxb7 {[%emt 0:02:30]} Nxb7 {[%emt 0:00:30]} 19. a4 {[%emt 0:00:00]} Rfc8 {[%emt 0:11:30]} 20. Qb5 {[%emt 0:08:00]} Na5 {[%emt 0:17:30]} 21. Rac1 {[%emt 0:03:30]} Qd8 {[%emt 0:07:30]} 22. Nf5 {[%emt 0:04:30]} Qf6 {[%emt 0:01:30]} 23. Rfd1 {[%emt 0:12:30]} Rd8 {[%emt 0:02:30]} 24. Nd4 {[%emt 0:00:30]} Qd6 {[%emt 0:01:30]} 25. Rc3 {[%emt 0:02:30]} Rac8 {[%emt 0:03:54]} 26. Rdc1 {[%emt 0:00:30]} Rxc3 {[%emt 0:01:37]} 27. Rxc3 {[%emt 0:00:30]} Nb7 {[%emt 0:01:32]} 28. Rc6 {[%emt 0:07:30]} Qd7 {[%emt 0:01:48]} 29. g3 {[%emt 0:03:30]} Na5 {[%emt 0:04:23]} 30. Rc3 {[%emt 0:00:30]} Qb7 {[%emt 0:00:54]} 31. Qe5 {[%emt 0:00:30]} f6 {[%emt 0:06:33]} 32. Qe6+ {[%emt 0:00:30]} Kh8 {[%emt 0:00:12]} 33. h4 {[%emt 0:00:30]} Qd7 {[%emt 0:00:50]} 34. Qe4 {[%emt 0:03:34]} Rc8 {[%emt 0:02:28]} 35. Rxc8+ {[%emt 0:00:27]} Qxc8 {[%emt 0:00:02]} 36. Qe7 {[%emt 0:00:07]} Nc6 {[%emt 0:00:16]} 37. Nxc6 {[%emt 0:00:28]} Qxc6 {[%emt 0:00:03]} 38. Qxa7 {[%emt 0:00:09]} Kh7 {[%emt 0:00:54]} 39. Qa6 {[%emt 0:00:16]} Qc1+ {[%emt 0:00:16]} 40. Qf1 {[%emt 0:00:00]} Qc5 {[%emt 0:00:00]} 41. Qb1+ {[%emt 0:00:59]} Kg8 {[%emt 0:04:48]} 42. Qe4 {[%emt 0:00:30]} Qc1+ {[%emt 0:00:30]} 43. Kg2 {[%emt 0:00:30]} Qc5 {[%emt 0:00:30]} 44. Qe8+ {[%emt 0:00:30]} Kh7 {[%emt 0:00:30]} 45. Qe6 {[%emt 0:00:30]} Kh8 {[%emt 0:00:30]} 46. Qe8+ {[%emt 0:07:30]} Kh7 {[%emt 0:00:30]} 47. Qb5 {[%emt 0:02:30]} Qc7 {[%emt 0:01:30]} 48. Qd5 {[%emt 0:00:30]} Qc2 {[%emt 0:01:30]} 49. Qd4 {[%emt 0:01:30]} Qb1 {[%emt 0:01:30]} 50. Qc4 {[%emt 0:00:30]} Kh8 {[%emt 0:01:30]} 51. h5 {[%emt 0:00:30]} Qf5 {[%emt 0:01:30]} 52. g4 {[%emt 0:00:30]} Qd7 {[%emt 0:00:30]} 53. Qe4 {[%emt 0:02:30]} Qd6 {[%emt 0:00:30]} 54. Qd4 {[%emt 0:01:30]} Qc6+ {[%emt 0:00:30]} 55. e4 {[%emt 0:02:30]} Qe6 {[%emt 0:00:30]} 56. Kg3 {[%emt 0:01:30]} Qc6 {[%emt 0:00:30]} 57. f4 {[%emt 0:02:30]} Qc1 {[%emt 0:02:30]} 58. e5 {[%emt 0:00:30]} Qe1+ {[%emt 0:01:30]} 59. Qf2 {[%emt 0:03:30]} Qc3+ {[%emt 0:00:30]} 60. Qf3 {[%emt 0:06:30]} Qe1+ {[%emt 0:00:30]} 61. Kh3 {[%emt 0:00:00]} fxe5 {[%emt 0:01:30]} 62. fxe5 {[%emt 0:00:00]} Qxe5 {[%emt 0:00:30]} 63. Qf8+ {[%emt 0:00:30]} Kh7 {[%emt 0:00:30]} 64. Qf5+ {[%emt 0:00:00]} Qxf5 {[%emt 0:00:00]} 65. gxf5 {[%emt 0:00:00]} Kg8 {[%emt 0:00:00]} 66. Kg4 {[%emt 0:00:00]} Kf7 {[%emt 0:00:00]} 67. Kf3 {[%emt 0:00:00]} Ke7 {[%emt 0:04:00]} 68. Ke3 {[%emt 0:00:30]} Kf6 {[%emt 0:05:47]} 69. Ke4 {[%emt 0:03:30]} Kg5 {[%emt 0:06:03]} 70. Kd5 {[%emt 0:00:00]} Kxh5 {[%emt 0:00:14]} 71. Kc6 {[%emt 0:00:00]} Kg5 {[%emt 0:00:28]} 72. Kxb6 {[%emt 0:00:00]} 1-0

[Event "27th CRO-chT 1A-Men 2018"]
[Site "Biograd"]
[Date "2018.09.10"]
[Round "3.11"]
[White "Cosic, Marin"]
[Black "Feletar, Darko"]
[Result "1/2-1/2"]
[ECO "E61"]
[WhiteElo "2227"]
[BlackElo "2364"]
[Annotator "ChessBase"]
[PlyCount "23"]
[EventDate "2018.09.08"]
[EventType "team-tourn"]
[EventCountry "CRO"]
[SourceTitle "playchess.com"]
[Source "ChessBase"]
[SourceQuality "1"]
[TimeControl "40/5400+30:1800+30"]

1. d4 {[%emt 0:03:30]} Nf6 {[%emt 0:02:30]} 2. Nf3 {[%emt 0:00:00]} b6 {[%emt 0:01:30]} 3. Bf4 {[%emt 0:02:00]} Bb7 {[%emt 0:00:30]} 4. e3 {[%emt 0:00:30]} g6 {[%emt 0:00:30]} 5. Be2 {[%emt 0:00:30]} Bg7 {[%emt 0:00:30]} 6. O-O {[%emt 0:00:00]} O-O {[%emt 0:00:00]} 7. c4 {[%emt 0:00:00]} d6 {[%emt 0:03:00]} 8. Nc3 {[%emt 0:01:30]} Nbd7 {[%emt 0:01:30]} 9. Qc2 {[%emt 0:01:30]} Qe8 {[%emt 0:14:30]} 10. Rad1 {[%emt 0:15:30]} a6 {[%emt 0:07:30]} 11. e4 {[%emt 0:08:30]} e5 {[%emt 0:10:30]} 12. dxe5 {[%emt 0:00:30]} 1/2-1/2

[Event "27th CRO-chT 1A-Men 2018"]
[Site "Biograd"]
[Date "2018.09.10"]
[Round "3.12"]
[White "Jukic, Branimir"]
[Black "Zivkovic, Nikola"]
[Result "1-0"]
[ECO "B99"]
[WhiteElo "2377"]
[BlackElo "2144"]
[Annotator "NA"]
[PlyCount "73"]
[EventDate "2018.09.08"]
[EventType "team-tourn"]
[EventCountry "CRO"]
[SourceTitle "playchess.com"]
[Source "ChessBase"]
[SourceQuality "1"]
[TimeControl "40/5400+30:1800+30"]

1. e4 {[%emt 0:03:30]} c5 {[%emt 0:00:30]} 2. Nf3 {[%emt 0:00:30]} d6 {[%emt 0:00:00]} 3. d4 {[%emt 0:00:00]} cxd4 {[%emt 0:00:00]} 4. Nxd4 {[%emt 0:00:00]} Nf6 {[%emt 0:00:30]} 5. Nc3 {[%emt 0:00:30]} a6 {[%emt 0:00:30]} 6. Bg5 {[%emt 0:00:30]} e6 {[%emt 0:00:00]} 7. f4 {[%emt 0:00:00]} Be7 {[%emt 0:00:00]} 8. Qf3 {[%emt 0:00:00]} Qc7 {[%emt 0:00:30]} 9. O-O-O {[%emt 0:00:30]} Nbd7 {[%emt 0:00:30]} 10. g4 {[%emt 0:00:30] LiveBook: 1232 Partien} b5 {[%emt 0:02:30]} 11. Bxf6 {[%emt 0:00:00]} Nxf6 {[%emt 0:00:30]} 12. g5 {[%emt 0:00:00]} Nd7 {[%emt 0:00:00]} 13. f5 {[%emt 0:00:00]} Nc5 {[%emt 0:01:00]} 14. f6 {[%emt 0:00:00]} gxf6 {[%emt 0:00:00]} 15. gxf6 {[%emt 0:00:30]} Bf8 {[%emt 0:00:00]} 16. Rg1 {[%emt 0:00:00]} b4 {[%emt 0:02:30]} 17. Nd5 {[%emt 0:00:00]} Qb7 $18 {[%emt 0:11:30]} (17... exd5 $16 {war angesagt.} 18. exd5 Nd7 19. Re1+ Ne5) 18. Rg7 {[%emt 0:01:30]} e5 {[%emt 0:07:30]} 19. Nf5 {[%emt 0:03:30]} Bxf5 {[%emt 0:10:30]} 20. Qxf5 {[%emt 0:01:30]} Ne6 {[%emt 0:02:30]} 21. Qxe6+ {[%emt 0:01:30]} fxe6 {[%emt 0:00:30]} 22. Rxb7 {[%emt 0:00:30]} exd5 {[%emt 0:00:00]} 23. Rxd5 {[%emt 0:00:30]} Bh6+ {[%emt 0:04:00]} 24. Kd1 {[%emt 0:00:30]} Rd8 {[%emt 0:02:30]} 25. Bxa6 {[%emt 0:00:30]} Bg5 {[%emt 0:00:30]} 26. f7+ {[%emt 0:02:30]} Kf8 {[%emt 0:00:30]} 27. Bc4 {[%emt 0:00:30]} h5 {[%emt 0:01:30]} 28. Rd3 {[%emt 0:00:30]} Bf4 {[%emt 0:02:30]} 29. Ke2 {[%emt 0:00:30]} Rh6 {[%emt 0:00:30]} 30. h3 {[%emt 0:00:00]} Rg6 {[%emt 0:00:30]} 31. Rxb4 {[%emt 0:00:00]} Rg2+ {[%emt 0:01:30]} 32. Kf1 {[%emt 0:00:30]} Rxc2 {[%emt 0:00:30]} 33. Rxd6 {[%emt 0:01:30]} Rc8 {[%emt 0:01:30]} 34. b3 {[%emt 0:01:30]} Rxa2 {[%emt 0:00:30]} 35. Rb7 {[%emt 0:01:30]} Rca8 {[%emt 0:03:30]} 36. Rg6 {[%emt 0:00:30]} Ra1+ {[%emt 0:00:30]} 37. Kf2 {[%emt 0:00:30]} 1-0

[Event "27th CRO-chT 1A-Men 2018"]
[Site "Biograd"]
[Date "2018.09.10"]
[Round "3.17"]
[White "Brnas, Augustin"]
[Black "Golubovic, Boris"]
[Result "1/2-1/2"]
[ECO "B46"]
[WhiteElo "2190"]
[BlackElo "2386"]
[Annotator "NA"]
[PlyCount "32"]
[EventDate "2018.09.08"]
[EventType "team-tourn"]
[EventCountry "CRO"]
[SourceTitle "playchess.com"]
[Source "ChessBase"]
[SourceQuality "1"]
[TimeControl "40/5400+30:1800+30"]

1. e4 {[%emt 0:05:30]} c5 {[%emt 0:02:30]} 2. Nf3 {[%emt 0:01:30]} Nc6 {[%emt 0:00:30]} 3. d4 {[%emt 0:02:30]} cxd4 {[%emt 0:00:30]} 4. Nxd4 {[%emt 0:00:00]} e6 {[%emt 0:04:30]} 5. Nc3 {[%emt 0:22:00]} a6 {[%emt 0:14:30]} 6. Nxc6 {[%emt 0:05:30]} bxc6 {[%emt 0:00:30]} 7. Bd3 {[%emt 0:00:30]} d5 {[%emt 0:04:30]} 8. O-O {[%emt 0:00:30]} Nf6 {[%emt 0:00:30]} 9. Qf3 {[%emt 0:02:30]} Be7 {[%emt 0:15:30]} 10. e5 {[%emt 0:08:30]} Nd7 {[%emt 0:02:30]} 11. Qg3 {[%emt 0:00:30]} g6 {[%emt 0:08:30]} 12. Bh6 {[%emt 0:03:30] LiveBook: 22 Games} c5 {[%emt 0:00:30]} 13. b3 {[%emt 0:00:30]} Bb7 $11 {[%emt 0:04:30]} 14. Rfe1 {[%emt 0:03:30]} Bf8 {[%emt 0:09:30]} 15. Bxf8 {[%emt 0:02:30]} Kxf8 {[%emt 0:04:30]} 16. Rad1 {[%emt 0:01:30]} Kg7 {[%emt 0:00:30]} 1/2-1/2

[Event "27th CRO-chT 1A-Men 2018"]
[Site "Biograd"]
[Date "2018.09.10"]
[Round "3.18"]
[White "Petrov, Jole"]
[Black "Separovic, Tomislav"]
[Result "1-0"]
[ECO "A09"]
[WhiteElo "2397"]
[BlackElo "2153"]
[Annotator "NA"]
[PlyCount "103"]
[EventDate "2018.09.08"]
[EventType "team-tourn"]
[EventCountry "CRO"]
[SourceTitle "playchess.com"]
[Source "ChessBase"]
[SourceQuality "1"]
[TimeControl "40/5400+30:1800+30"]

1. Nf3 {[%emt 0:00:30]} d5 {[%emt 0:00:30]} 2. g3 {[%emt 0:00:30]} Nf6 {[%emt 0:00:30]} 3. Bg2 {[%emt 0:00:30]} c5 {[%emt 0:00:30]} 4. c4 {[%emt 0:00:30]} d4 {[%emt 0:00:30]} 5. d3 {[%emt 0:00:30]} Nc6 {[%emt 0:00:30]} 6. O-O {[%emt 0:00:30]} e5 {[%emt 0:01:30]} 7. e3 {[%emt 0:00:00]} Be7 {[%emt 0:00:30]} 8. exd4 {[%emt 0:01:00]} exd4 {[%emt 0:00:30]} 9. Bf4 {[%emt 0:11:30]} O-O {[%emt 0:01:30]} 10. Ne5 {[%emt 0:00:00]} Nxe5 {[%emt 0:01:30]} 11. Bxe5 {[%emt 0:00:00]} Bd6 {[%emt 0:00:30] A09: Réti Opening: 1 Nf3 d5 2 c4} (11... Ng4 12. Re1 Nxe5 13. Rxe5 Bd6 14. Re1 Bf5 15. Qc2 Qd7 16. Nd2 Rae8 17. Ne4 b6 18. f4 Re7 19. Qf2 Rfe8 {½-½ (37) Caruana,F (2823)-Anand,V (2779) Saint Louis 2016}) 12. Bxf6 {[%emt 0:04:30] LiveBook: 19 Partien} Qxf6 {[%emt 0:00:30]} 13. Nd2 {[%emt 0:00:30]} Qd8 {[%emt 0:01:30]} 14. f4 {[%emt 0:13:30]} Rb8 $146 {[%emt 0:06:30]} ({Predecessor:} 14... g6 15. Bd5 Rb8 16. Qf3 Kh8 17. Rfe1 b6 18. Ne4 Be7 19. Re2 {½-½ (27) Martinovic,S (2475)-Janosevic,D (2440) Skender Vakuf (Knezevo) 1980}) 15. f5 {[%emt 0:02:30]} f6 {[%emt 0:06:30]} 16. Bd5+ {[%emt 0:03:30]} Kh8 {[%emt 0:00:30]} 17. Ne4 {[%emt 0:03:30]} b6 {[%emt 0:01:30]} 18. Qf3 {[%emt 0:00:30]} Be5 {[%emt 0:00:30]} 19. Rae1 {[%emt 0:01:30]} Qc7 {[%emt 0:00:30]} 20. Re2 {[%emt 0:03:30]} Bb7 {[%emt 0:00:30]} 21. Bxb7 {[%emt 0:00:30]} Qxb7 {[%emt 0:01:30]} 22. Rfe1 {[%emt 0:00:30]} Qd7 {[%emt 0:08:30]} 23. Ng5 {[%emt 0:14:30]} fxg5 {[%emt 0:04:30]} 24. Rxe5 {[%emt 0:00:00]} Rbe8 {[%emt 0:00:30]} 25. Qe4 {[%emt 0:14:00]} Rxe5 {[%emt 0:01:30]} 26. Qxe5 {[%emt 0:00:30]} h6 {[%emt 0:00:30]} 27. g4 {[%emt 0:00:30]} Qa4 {[%emt 0:04:30]} 28. a3 {[%emt 0:06:05]} Qc2 {[%emt 0:03:30]} 29. Qe7 {[%emt 0:04:17]} Kg8 {[%emt 0:02:30]} 30. Qe6+ {[%emt 0:00:06]} Kh8 {[%emt 0:00:00]} 31. Qe2 {[%emt 0:00:23]} Qa4 {[%emt 0:03:00]} 32. Qe7 {[%emt 0:04:30]} Kg8 {[%emt 0:00:30]} 33. Qe6+ {[%emt 0:00:08]} Kh8 {[%emt 0:00:00]} 34. Qg6 {[%emt 0:00:40]} Qd7 {[%emt 0:11:00]} 35. b4 {[%emt 0:00:44]} Kg8 {[%emt 0:25:04] [#]} (35... Qc7 $1 $11 {keeps the balance.}) 36. b5 $1 {[%emt 0:00:27]} Kh8 {[%emt 0:04:55]} 37. Re4 {[%emt 0:02:29]} Kg8 {[%emt 0:00:21]} 38. Qe6+ $2 {[%emt 0:02:21]} (38. Kf2 $18) 38... Qf7 $18 {[%emt 0:00:20]} (38... Qxe6 $14 39. Rxe6 h5) 39. Kg2 {[%emt 0:00:09]} Kh8 {[%emt 0:00:16]} 40. Qxf7 {[%emt 0:00:00]} Rxf7 {[%emt 0:00:00]} 41. Re6 {[%emt 0:00:41]} Kg8 {[%emt 0:01:34]} 42. Kf3 {[%emt 0:00:30]} Kf8 {[%emt 0:00:30]} 43. Ke4 {[%emt 0:00:30]} Rd7 {[%emt 0:00:30]} 44. Ke5 {[%emt 0:03:30]} Kf7 {[%emt 0:00:00]} 45. f6 {[%emt 0:00:30]} Kg6 {[%emt 0:05:00]} 46. a4 {[%emt 0:03:30]} Rf7 {[%emt 0:00:30]} 47. fxg7+ {[%emt 0:00:30]} Kxg7 {[%emt 0:00:30]} 48. Kd5 {[%emt 0:03:30]} Rf3 {[%emt 0:03:30]} 49. Re7+ {[%emt 0:00:30]} Kf8 {[%emt 0:01:30]} 50. Rxa7 {[%emt 0:00:30]} Rxd3 {[%emt 0:00:00]} 51. a5 {[%emt 0:00:00]} bxa5 {[%emt 0:01:00]} 52. b6 {[%emt 0:06:00]} 1-0

[Event "27th CRO-chT 1A-Men 2018"]
[Site "Biograd"]
[Date "2018.09.10"]
[Round "3.23"]
[White "Loncar, Robert"]
[Black "Dutina, Dario"]
[Result "1/2-1/2"]
[ECO "D30"]
[WhiteElo "2409"]
[BlackElo "2245"]
[Annotator "ChessBase"]
[PlyCount "96"]
[EventDate "2018.09.08"]
[EventType "team-tourn"]
[EventCountry "CRO"]
[SourceTitle "playchess.com"]
[Source "ChessBase"]
[SourceQuality "1"]
[TimeControl "40/5400+30:1800+30"]

1. d4 {[%emt 0:14:30]} e6 {[%emt 0:00:30]} 2. Nf3 {[%emt 0:01:30]} d5 {[%emt 0:01:30]} 3. c4 {[%emt 0:00:30]} c6 {[%emt 0:02:30]} 4. Bg5 {[%emt 0:00:30]} Bb4+ {[%emt 0:08:30]} 5. Nc3 {[%emt 0:03:30]} f6 {[%emt 0:05:30]} 6. Bd2 {[%emt 0:10:30]} Ne7 {[%emt 0:14:30]} 7. Qb3 {[%emt 0:08:30]} Ba5 {[%emt 0:03:30]} 8. g3 {[%emt 0:11:30]} Nf5 {[%emt 0:06:30]} 9. e3 {[%emt 0:05:30]} Nd6 {[%emt 0:01:30]} 10. cxd5 {[%emt 0:02:30]} exd5 {[%emt 0:00:30]} 11. Bg2 {[%emt 0:00:30]} O-O {[%emt 0:01:30]} 12. O-O {[%emt 0:00:00]} Kh8 {[%emt 0:01:30]} 13. Rfe1 {[%emt 0:02:00]} Nd7 {[%emt 0:11:30]} 14. Qc2 {[%emt 0:02:30]} Nb6 {[%emt 0:06:30]} 15. Nh4 {[%emt 0:09:30]} Nbc4 {[%emt 0:02:30]} 16. Bc1 {[%emt 0:02:30]} g5 {[%emt 0:00:00]} 17. Nf3 {[%emt 0:01:30]} Bf5 {[%emt 0:00:00]} 18. Qb3 {[%emt 0:01:53]} Qd7 {[%emt 0:06:30]} 19. Nd2 {[%emt 0:00:43]} b5 {[%emt 0:07:54]} 20. Nxc4 {[%emt 0:01:40]} bxc4 {[%emt 0:01:23]} 21. Qa4 {[%emt 0:00:00]} Bxc3 {[%emt 0:06:32]} 22. bxc3 {[%emt 0:00:29]} Rfe8 {[%emt 0:00:06]} 23. Ba3 {[%emt 0:02:25]} Ne4 {[%emt 0:00:58]} 24. Rac1 {[%emt 0:03:12]} g4 {[%emt 0:00:03]} 25. Re2 {[%emt 0:01:26]} Rab8 {[%emt 0:00:49]} 26. Rb2 {[%emt 0:02:43]} Rxb2 {[%emt 0:00:48]} 27. Bxb2 {[%emt 0:00:02]} Ng5 {[%emt 0:00:00]} 28. Ba3 {[%emt 0:01:00]} Rb8 {[%emt 0:02:48]} 29. Bb4 {[%emt 0:02:03]} Be4 {[%emt 0:00:00]} 30. Bxe4 {[%emt 0:01:49]} Nxe4 {[%emt 0:00:09]} 31. Qc2 {[%emt 0:00:40]} Kg7 {[%emt 0:01:05]} 32. Rb1 {[%emt 0:00:31]} Qf5 {[%emt 0:01:05]} 33. Rb2 {[%emt 0:00:22]} Rb6 {[%emt 0:03:02]} 34. Qa4 {[%emt 0:00:32]} Qd7 {[%emt 0:00:33]} 35. Qa3 {[%emt 0:00:55]} Qb7 {[%emt 0:01:23]} 36. Bf8+ {[%emt 0:00:17]} Kf7 {[%emt 0:00:56]} 37. Rxb6 {[%emt 0:00:26]} axb6 {[%emt 0:00:01]} 38. Bh6 {[%emt 0:02:23]} c5 {[%emt 0:00:40]} 39. Kg2 {[%emt 0:00:58]} Kg6 {[%emt 0:00:49]} 40. Bf4 {[%emt 0:00:00]} Kf7 {[%emt 0:00:00]} 41. Qb2 {[%emt 0:16:31]} Qa6 {[%emt 0:13:26]} 42. dxc5 {[%emt 0:00:30]} Nxc5 {[%emt 0:00:00]} 43. h3 {[%emt 0:02:04]} h5 {[%emt 0:00:00]} 44. hxg4 {[%emt 0:00:11]} hxg4 {[%emt 0:00:30]} 45. Qb1 {[%emt 0:02:32]} Nd3 {[%emt 0:06:13]} 46. Qh1 {[%emt 0:00:30]} Qxa2 {[%emt 0:08:07]} 47. Qh7+ {[%emt 0:00:13]} Ke8 {[%emt 0:01:57]} 48. Qg8+ {[%emt 0:00:21]} Ke7 {[%emt 0:00:04]} 1/2-1/2

[Event "27th CRO-chT 1A-Men 2018"]
[Site "Biograd"]
[Date "2018.09.12"]
[Round "5.3"]
[White "Muse, Drazen"]
[Black "Martinovic, Sasa"]
[Result "1-0"]
[ECO "D43"]
[WhiteElo "2352"]
[BlackElo "2567"]
[Annotator "RC"]
[PlyCount "73"]
[EventDate "2018.09.08"]
[EventType "team-tourn"]
[EventCountry "CRO"]
[SourceTitle "playchess.com"]
[Source "ChessBase"]
[SourceQuality "1"]
[TimeControl "40/5400+30:1800+30"]

1. d4 {[%emt 0:03:30]} Nf6 {[%emt 0:00:30]} 2. Nf3 {[%emt 0:00:00]} d5 {[%emt 0:00:00]} 3. c4 {[%emt 0:00:00]} e6 {[%emt 0:00:00]} 4. Nc3 {[%emt 0:00:30]} c6 {[%emt 0:00:00]} 5. Qb3 {[%emt 0:03:30]} Nbd7 {[%emt 0:00:00]} 6. g3 {[%emt 0:00:30]} Nb6 {[%emt 0:00:30]} 7. cxd5 {[%emt 0:01:30]} exd5 {[%emt 0:00:30]} 8. Bg2 {[%emt 0:00:30]} Be7 {[%emt 0:00:30]} 9. O-O {[%emt 0:03:30]} O-O {[%emt 0:00:30]} 10. Bf4 {[%emt 0:02:30]} Nh5 {[%emt 0:03:30]} 11. Bd2 {[%emt 0:12:30]} Nc4 {[%emt 0:01:30]} 12. Rad1 {[%emt 0:02:30]} Qb6 {[%emt 0:03:30]} 13. e4 {[%emt 0:05:30]} Qxb3 {[%emt 0:19:30]} 14. axb3 {[%emt 0:03:30]} Nxb2 {[%emt 0:00:00]} 15. Rb1 {[%emt 0:00:00]} dxe4 {[%emt 0:00:00]} 16. Nxe4 {[%emt 0:07:00]} Bf5 {[%emt 0:04:30]} 17. Ne5 {[%emt 0:02:30]} f6 {[%emt 0:07:30]} 18. Nxc6 {[%emt 0:04:30]} bxc6 {[%emt 0:00:30]} 19. Rxb2 {[%emt 0:00:30]} g5 {[%emt 0:17:30]} 20. Nc5 {[%emt 0:04:30]} Rfc8 {[%emt 0:01:30]} 21. Ra1 {[%emt 0:00:30]} Bxc5 {[%emt 0:00:30]} 22. dxc5 {[%emt 0:00:30]} Bd3 {[%emt 0:00:30]} 23. Bc3 {[%emt 0:01:30]} Bb5 {[%emt 0:04:30]} 24. Bf3 {[%emt 0:12:30]} Ng7 {[%emt 0:00:30]} 25. Rd2 {[%emt 0:00:30]} Rc7 {[%emt 0:05:30]} 26. Re1 {[%emt 0:11:34]} f5 {[%emt 0:04:30]} 27. h3 {[%emt 0:00:21]} a6 {[%emt 0:09:20]} 28. Rd6 {[%emt 0:01:08]} Ne8 {[%emt 0:01:13]} 29. Rde6 {[%emt 0:01:55]} Ng7 {[%emt 0:00:27]} 30. Re7 {[%emt 0:00:13]} Raa7 {[%emt 0:00:27]} 31. Re8+ {[%emt 0:03:50]} Kf7 {[%emt 0:00:39]} 32. Rh8 {[%emt 0:00:31]} Kg6 {[%emt 0:01:54]} 33. g4 {[%emt 0:01:50]} Re7 {[%emt 0:06:18]} 34. Rd1 {[%emt 0:00:14]} Ne8 {[%emt 0:05:48]} 35. Rd8 {[%emt 0:01:56]} Nf6 {[%emt 0:02:40]} 36. Rd6 {[%emt 0:00:54]} Rf7 {[%emt 0:00:03]} 37. Rg8+ {[%emt 0:00:12]} 1-0

[Event "27th CRO-chT 1A-Men 2018"]
[Site "Biograd"]
[Date "2018.09.12"]
[Round "5.15"]
[White "Lalic, Bogdan"]
[Black "Zivkovic, Vjekoslav"]
[Result "1/2-1/2"]
[ECO "D27"]
[WhiteElo "2403"]
[BlackElo "2358"]
[Annotator "NA"]
[PlyCount "21"]
[EventDate "2018.09.08"]
[EventType "team-tourn"]
[EventCountry "CRO"]
[SourceTitle "playchess.com"]
[Source "ChessBase"]
[SourceQuality "1"]
[TimeControl "40/5400+30:1800+30"]

1. d4 {[%emt 0:01:30]} d5 {[%emt 0:00:30]} 2. c4 {[%emt 0:00:30]} dxc4 {[%emt 0:00:00]} 3. e3 {[%emt 0:00:30]} Nf6 {[%emt 0:01:00]} 4. Bxc4 {[%emt 0:00:30]} e6 {[%emt 0:00:30]} 5. Nf3 {[%emt 0:00:00]} c5 {[%emt 0:01:30]} 6. O-O {[%emt 0:00:00]} a6 {[%emt 0:00:00]} 7. Bd3 {[%emt 0:00:30]} Nc6 {[%emt 0:06:00]} 8. Nc3 {[%emt 0:00:30]} Be7 {[%emt 0:13:30]} 9. dxc5 {[%emt 0:00:30]} Bxc5 {[%emt 0:00:00]} 10. a3 {[%emt 0:00:30]} O-O {[%emt 0:14:00]} 11. Qe2 {[%emt 0:03:30]} 1/2-1/2